[Event "Titled Tuesday Blitz May 31 Early 2022"]
[White "Matinian, Nikita"]
[Black "Sjugirov, Sanan"]
[WhiteFideId "24129100"]
[BlackFideId "4189302"]
[WhiteElo "2422"]
[BlackElo "2602"]
[Result "0-1"]
[Round "05"]
[TimeControl "180+1"]
[Date "2022.05.31"]
[WhiteClock "0:00:04"]
[BlackClock "0:00:05"]

1. e4 {[%clk 0:03:00]}  g6 {[%clk 0:02:56]} 2. d4 {[%clk 0:03:00]}  d6 {[%clk 0:02:56]} 3. Nc3 {[%clk 0:03:00]}  Bg7 {[%clk 0:02:55]} 4. Be3 {[%clk 0:02:59]}  a6 {[%clk 0:02:55]} 5. g4 {[%clk 0:02:59]}  b5 {[%clk 0:02:52]} 6. Bg2 {[%clk 0:02:58]}  Bb7 {[%clk 0:02:51]} 7. Nge2 {[%clk 0:02:53]}  Nf6 {[%clk 0:02:42]} 8. Ng3 {[%clk 0:02:53]}  h5 {[%clk 0:02:38]} 9. gxh5 {[%clk 0:02:53]}  Nxh5 {[%clk 0:02:38]} 10. a4 {[%clk 0:02:45]}  b4 {[%clk 0:02:36]} 11. Nd5 {[%clk 0:02:46]}  a5 {[%clk 0:02:33]} 12. Qg4 {[%clk 0:02:21]}  Nd7 {[%clk 0:02:17]} 13. Nxh5 {[%clk 0:01:48]}  Rxh5 {[%clk 0:02:18]} 14. Bf3 {[%clk 0:01:42]}  Bxd5 {[%clk 0:01:56]} 15. exd5 {[%clk 0:01:41]}  Nf6 {[%clk 0:01:56]} 16. Qg2 {[%clk 0:01:38]}  Rh8 {[%clk 0:01:55]} 17. h4 {[%clk 0:01:35]}  Kf8 {[%clk 0:01:37]} 18. h5 {[%clk 0:01:25]}  Nxh5 {[%clk 0:01:29]} 19. Bxh5 {[%clk 0:01:25]}  Rxh5 {[%clk 0:01:26]} 20. Rxh5 {[%clk 0:01:25]}  gxh5 {[%clk 0:01:27]} 21. O-O-O {[%clk 0:01:26]}  Qd7 {[%clk 0:01:20]} 22. Rg1 {[%clk 0:01:21]}  Qg4 {[%clk 0:01:20]} 23. Qxg4 {[%clk 0:01:09]}  hxg4 {[%clk 0:01:19]} 24. Rxg4 {[%clk 0:01:09]}  f6 {[%clk 0:01:09]} 25. Kd2 {[%clk 0:01:09]}  Kf7 {[%clk 0:01:07]} 26. Kd3 {[%clk 0:01:10]}  Rc8 {[%clk 0:01:00]} 27. c4 {[%clk 0:00:56]}  bxc3 {[%clk 0:00:49]} 28. bxc3 {[%clk 0:00:57]}  Rb8 {[%clk 0:00:49]} 29. Kc4 {[%clk 0:00:55]}  Rb2 {[%clk 0:00:45]} 30. Rg1 {[%clk 0:00:47]}  Rb6 {[%clk 0:00:37]} 31. Ra1 {[%clk 0:00:39]}  Rb8 {[%clk 0:00:33]} 32. Ra3 {[%clk 0:00:39]}  e6 {[%clk 0:00:22]} 33. dxe6+ {[%clk 0:00:39]}  Kxe6 {[%clk 0:00:22]} 34. d5+ {[%clk 0:00:40]}  Kd7 {[%clk 0:00:21]} 35. Rb3 {[%clk 0:00:37]}  Ra8 {[%clk 0:00:14]} 36. Bd4 {[%clk 0:00:35]}  Bh8 {[%clk 0:00:06]} 37. Rb1 {[%clk 0:00:35]}  f5 {[%clk 0:00:06]} 38. Rh1 {[%clk 0:00:32]}  Bxd4 {[%clk 0:00:05]} 39. Rh7+ {[%clk 0:00:31]}  Kc8 {[%clk 0:00:04]} 40. Kxd4 {[%clk 0:00:29]}  Kb7 {[%clk 0:00:04]} 41. Rf7 {[%clk 0:00:29]}  Re8 {[%clk 0:00:03]} 42. Rxf5 {[%clk 0:00:28]}  Re1 {[%clk 0:00:04]} 43. Kc4 {[%clk 0:00:29]}  Kb6 {[%clk 0:00:03]} 44. Rf8 {[%clk 0:00:25]}  Re4+ {[%clk 0:00:03]} 45. Kb3 {[%clk 0:00:24]}  Kc5 {[%clk 0:00:03]} 46. Rc8 {[%clk 0:00:23]}  Kxd5 {[%clk 0:00:03]} 47. Rxc7 {[%clk 0:00:23]}  Rf4 {[%clk 0:00:03]} 48. Ra7 {[%clk 0:00:23]}  Rxf2 {[%clk 0:00:03]} 49. Rxa5+ {[%clk 0:00:23]}  Kc6 {[%clk 0:00:04]} 50. Ra6+ {[%clk 0:00:20]}  Kc5 {[%clk 0:00:03]} 51. Ra5+ {[%clk 0:00:19]}  Kc6 {[%clk 0:00:03]} 52. Rb5 {[%clk 0:00:18]}  Rf1 {[%clk 0:00:04]} 53. Rb4 {[%clk 0:00:17]}  Rb1+ {[%clk 0:00:04]} 54. Ka3 {[%clk 0:00:16]}  Ra1+ {[%clk 0:00:04]} 55. Kb2 {[%clk 0:00:16]}  Rf1 {[%clk 0:00:04]} 56. Rb8 {[%clk 0:00:13]}  Rf2+ {[%clk 0:00:04]} 57. Kb3 {[%clk 0:00:13]}  Rf1 {[%clk 0:00:05]} 58. Rc8+ {[%clk 0:00:12]}  Kb7 {[%clk 0:00:05]} 59. Rc4 {[%clk 0:00:10]}  Rb1+ {[%clk 0:00:04]} 60. Ka2 {[%clk 0:00:10]}  Rf1 {[%clk 0:00:05]} 61. Rb4+ {[%clk 0:00:10]}  Kc6 {[%clk 0:00:05]} 62. Kb2 {[%clk 0:00:10]}  Rf2+ {[%clk 0:00:05]} 63. Kb3 {[%clk 0:00:10]}  Rf1 {[%clk 0:00:06]} 64. a5 {[%clk 0:00:11]}  Rb1+ {[%clk 0:00:05]} 65. Ka2 {[%clk 0:00:11]}  Rc1 {[%clk 0:00:05]} 66. Kb2 {[%clk 0:00:10]}  Rg1 {[%clk 0:00:05]} 67. a6 {[%clk 0:00:08]}  Rg7 {[%clk 0:00:05]} 68. Ra4 {[%clk 0:00:07]}  Ra7 {[%clk 0:00:05]} 69. Kb3 {[%clk 0:00:08]}  Kb5 {[%clk 0:00:05]} 70. Rb4+ {[%clk 0:00:04]}  Kc6 {[%clk 0:00:05]} 0-1


[Site "https://www.chess.com"]

[Event "Titled Tuesday Blitz May 31 Early 2022"]
[White "Pourkashiyan, Atousa"]
[Black "Richter, Nils"]
[WhiteFideId "12502014"]
[BlackFideId "12990809"]
[WhiteElo "2247"]
[BlackElo "2243"]
[Result "1-0"]
[Round "05"]
[TimeControl "180+1"]
[Date "2022.06.01"]
[WhiteClock "0:00:15"]
[BlackClock "0:00:02"]

1. e4 {[%clk 0:02:42]}  c5 {[%clk 0:02:58]} 2. Nf3 {[%clk 0:02:39]}  Nc6 {[%clk 0:02:58]} 3. d4 {[%clk 0:02:40]}  cxd4 {[%clk 0:02:59]} 4. Nxd4 {[%clk 0:02:40]}  Nf6 {[%clk 0:03:00]} 5. Nc3 {[%clk 0:02:40]}  h5 {[%clk 0:03:01]} 6. Bg5 {[%clk 0:02:30]}  Qa5 {[%clk 0:02:59]} 7. Bxf6 {[%clk 0:02:08]}  gxf6 {[%clk 0:02:16]} 8. Be2 {[%clk 0:01:49]}  Qb4 {[%clk 0:02:07]} 9. Nb3 {[%clk 0:01:46]}  d6 {[%clk 0:02:04]} 10. Bxh5 {[%clk 0:01:44]}  a5 {[%clk 0:01:44]} 11. a4 {[%clk 0:01:36]}  f5 {[%clk 0:01:30]} 12. O-O {[%clk 0:01:28]}  Be6 {[%clk 0:01:09]} 13. exf5 {[%clk 0:01:26]}  Bxb3 {[%clk 0:01:01]} 14. cxb3 {[%clk 0:01:25]}  Qh4 {[%clk 0:01:01]} 15. g4 {[%clk 0:01:09]}  Bh6 {[%clk 0:00:57]} 16. Nd5 {[%clk 0:01:06]}  O-O-O {[%clk 0:00:48]} 17. f4 {[%clk 0:00:39]}  e6 {[%clk 0:00:43]} 18. fxe6 {[%clk 0:00:36]}  fxe6 {[%clk 0:00:44]} 19. Ne3 {[%clk 0:00:25]}  Bxf4 {[%clk 0:00:40]} 20. Rxf4 {[%clk 0:00:23]}  Rxh5 {[%clk 0:00:39]} 21. Qe2 {[%clk 0:00:14]}  Re5 {[%clk 0:00:37]} 22. Qf2 {[%clk 0:00:11]}  Qg5 {[%clk 0:00:34]} 23. Nc4 {[%clk 0:00:11]}  Re2 {[%clk 0:00:28]} 24. Qxe2 {[%clk 0:00:10]}  Qxf4 {[%clk 0:00:28]} 25. Rf1 {[%clk 0:00:11]}  Qd4+ {[%clk 0:00:28]} 26. Kh1 {[%clk 0:00:11]}  Rh8 {[%clk 0:00:24]} 27. Qxe6+ {[%clk 0:00:11]}  Kb8 {[%clk 0:00:19]} 28. Qxd6+ {[%clk 0:00:11]}  Ka7 {[%clk 0:00:17]} 29. Qxd4+ {[%clk 0:00:11]}  Nxd4 {[%clk 0:00:18]} 30. Nxa5 {[%clk 0:00:10]}  Rh3 {[%clk 0:00:15]} 31. Kg2 {[%clk 0:00:09]}  Rd3 {[%clk 0:00:14]} 32. Nc4 {[%clk 0:00:09]}  Rxb3 {[%clk 0:00:13]} 33. g5 {[%clk 0:00:09]}  Rb4 {[%clk 0:00:13]} 34. g6 {[%clk 0:00:08]}  Ne6 {[%clk 0:00:13]} 35. Ne5 {[%clk 0:00:07]}  Nf4+ {[%clk 0:00:11]} 36. Rxf4 {[%clk 0:00:05]}  Rxf4 {[%clk 0:00:12]} 37. g7 {[%clk 0:00:06]}  Rf5 {[%clk 0:00:11]} 38. g8=Q {[%clk 0:00:06]}  Rxe5 {[%clk 0:00:12]} 39. Qc4 {[%clk 0:00:06]}  Rg5+ {[%clk 0:00:11]} 40. Kf3 {[%clk 0:00:06]}  Rh5 {[%clk 0:00:10]} 41. Ke3 {[%clk 0:00:07]}  Rh3+ {[%clk 0:00:09]} 42. Kf2 {[%clk 0:00:07]}  Rxh2+ {[%clk 0:00:09]} 43. Kg1 {[%clk 0:00:07]}  Rd2 {[%clk 0:00:04]} 44. Qc5+ {[%clk 0:00:08]}  Ka8 {[%clk 0:00:03]} 45. Qf8+ {[%clk 0:00:08]}  Ka7 {[%clk 0:00:03]} 46. Qb4 {[%clk 0:00:08]}  Rd1+ {[%clk 0:00:02]} 47. Kf2 {[%clk 0:00:09]}  Rd5 {[%clk 0:00:02]} 48. Ke3 {[%clk 0:00:09]}  Rh5 {[%clk 0:00:02]} 49. Kd3 {[%clk 0:00:09]}  Rh3+ {[%clk 0:00:02]} 50. Kc2 {[%clk 0:00:10]}  Rh2+ {[%clk 0:00:03]} 51. Kb1 {[%clk 0:00:10]}  Rh1+ {[%clk 0:00:04]} 52. Ka2 {[%clk 0:00:11]}  Rh6 {[%clk 0:00:05]} 53. Qd4+ {[%clk 0:00:11]}  Ka8 {[%clk 0:00:04]} 54. Qd8+ {[%clk 0:00:11]}  Ka7 {[%clk 0:00:04]} 55. Qg5 {[%clk 0:00:12]}  Rc6 {[%clk 0:00:04]} 56. Qe3+ {[%clk 0:00:12]}  Ka8 {[%clk 0:00:04]} 57. b3 {[%clk 0:00:13]}  Kb8 {[%clk 0:00:03]} 58. Ka3 {[%clk 0:00:14]}  Ka8 {[%clk 0:00:03]} 59. Qe5 {[%clk 0:00:14]}  Ka7 {[%clk 0:00:03]} 60. Qa5+ {[%clk 0:00:14]}  Kb8 {[%clk 0:00:03]} 61. Qd8+ {[%clk 0:00:15]}  Ka7 {[%clk 0:00:04]} 62. a5 {[%clk 0:00:16]}  Rh6 {[%clk 0:00:03]} 63. Ka4 {[%clk 0:00:16]}  Rh5 {[%clk 0:00:03]} 64. b4 {[%clk 0:00:17]}  Rh1 {[%clk 0:00:02]} 65. Qd4+ {[%clk 0:00:17]}  Ka8 {[%clk 0:00:02]} 66. Qe5 {[%clk 0:00:16]}  Ka7 {[%clk 0:00:03]} 67. Kb5 {[%clk 0:00:15]}  Rd1 {[%clk 0:00:02]} 68. Qg5 {[%clk 0:00:15]}  Ka8 {[%clk 0:00:01]} 69. Qg8+ {[%clk 0:00:15]}  Ka7 {[%clk 0:00:02]} 70. Qe6 {[%clk 0:00:14]}  Ka8 {[%clk 0:00:02]} 71. Kb6 {[%clk 0:00:14]}  Rc1 {[%clk 0:00:01]} 72. Qe8+ {[%clk 0:00:14]}  Rc8 {[%clk 0:00:02]} 73. Qxc8# {[%clk 0:00:15]} 1-0


[Site "https://www.chess.com"]

[Event "Titled Tuesday Blitz May 31 Early 2022"]
[White "Priasmoro, Novendra"]
[Black "Wagner, Dennis"]
[WhiteFideId "7105029"]
[BlackFideId "24650684"]
[WhiteElo "2309"]
[BlackElo "2355"]
[Result "1-0"]
[Round "05"]
[TimeControl "180+1"]
[Date "2022.05.31"]
[WhiteClock "0:00:19"]
[BlackClock "0:00:01"]

1. e4 {[%clk 0:03:00]}  e5 {[%clk 0:02:53]} 2. Nf3 {[%clk 0:03:00]}  Nc6 {[%clk 0:02:53]} 3. Bb5 {[%clk 0:03:00]}  a6 {[%clk 0:02:53]} 4. Ba4 {[%clk 0:03:00]}  Nf6 {[%clk 0:02:53]} 5. O-O {[%clk 0:03:01]}  Bc5 {[%clk 0:02:54]} 6. c3 {[%clk 0:02:55]}  b5 {[%clk 0:02:52]} 7. Bc2 {[%clk 0:02:55]}  d6 {[%clk 0:02:53]} 8. d4 {[%clk 0:02:54]}  Ba7 {[%clk 0:02:52]} 9. Be3 {[%clk 0:02:36]}  Bg4 {[%clk 0:02:48]} 10. dxe5 {[%clk 0:02:21]}  Nxe5 {[%clk 0:02:34]} 11. Bxa7 {[%clk 0:02:16]}  Rxa7 {[%clk 0:02:21]} 12. Nbd2 {[%clk 0:02:16]}  O-O {[%clk 0:02:21]} 13. h3 {[%clk 0:02:14]}  Bh5 {[%clk 0:02:18]} 14. g4 {[%clk 0:01:51]}  Nxf3+ {[%clk 0:02:17]} 15. Qxf3 {[%clk 0:01:46]}  Bg6 {[%clk 0:02:18]} 16. Qe3 {[%clk 0:01:46]}  c5 {[%clk 0:02:04]} 17. f4 {[%clk 0:01:46]}  h6 {[%clk 0:01:54]} 18. f5 {[%clk 0:01:46]}  Bh7 {[%clk 0:01:54]} 19. Nf3 {[%clk 0:01:31]}  Re8 {[%clk 0:01:54]} 20. Rad1 {[%clk 0:01:29]}  Rae7 {[%clk 0:01:38]} 21. Qf4 {[%clk 0:01:07]}  Nxe4 {[%clk 0:01:35]} 22. Bxe4 {[%clk 0:00:52]}  Rxe4 {[%clk 0:01:36]} 23. Qxd6 {[%clk 0:00:52]}  Qxd6 {[%clk 0:01:13]} 24. Rxd6 {[%clk 0:00:53]}  f6 {[%clk 0:00:47]} 25. Rxa6 {[%clk 0:00:52]}  h5 {[%clk 0:00:47]} 26. Nh2 {[%clk 0:00:24]}  Re3 {[%clk 0:00:47]} 27. Kg2 {[%clk 0:00:24]}  Kh8 {[%clk 0:00:44]} 28. Rc6 {[%clk 0:00:22]}  R3e5 {[%clk 0:00:15]} 29. Nf3 {[%clk 0:00:22]}  Rd5 {[%clk 0:00:15]} 30. Kg3 {[%clk 0:00:22]}  Bg8 {[%clk 0:00:11]} 31. Rf2 {[%clk 0:00:22]}  Re3 {[%clk 0:00:09]} 32. Kf4 {[%clk 0:00:22]}  Re8 {[%clk 0:00:06]} 33. Rd2 {[%clk 0:00:20]}  Kh7 {[%clk 0:00:05]} 34. Rxd5 {[%clk 0:00:20]}  Bxd5 {[%clk 0:00:06]} 35. Rxc5 {[%clk 0:00:20]}  Re4+ {[%clk 0:00:06]} 36. Kg3 {[%clk 0:00:21]}  Bxa2 {[%clk 0:00:06]} 37. g5 {[%clk 0:00:21]}  h4+ {[%clk 0:00:02]} 38. Kf2 {[%clk 0:00:19]}  Rf4 {[%clk 0:00:02]} 39. g6+ {[%clk 0:00:19]}  Kh6 {[%clk 0:00:02]} 40. Ke3 {[%clk 0:00:20]}  Rc4 {[%clk 0:00:01]} 41. Rxb5 {[%clk 0:00:19]} 1-0


[Site "https://www.chess.com"]

[Event "Titled Tuesday Blitz May 31 Early 2022"]
[White "Salinas Herrera, Pablo"]
[Black "De Silva, L M S T"]
[WhiteFideId "3407128"]
[BlackFideId "9953698"]
[WhiteElo "2541"]
[BlackElo "1631"]
[Result "1-0"]
[Round "05"]
[TimeControl "180+1"]
[Date "2022.06.01"]
[WhiteClock "0:00:03"]
[BlackClock "0:00:25"]

1. d4 {[%clk 0:03:00]}  Nf6 {[%clk 0:02:59]} 2. Nf3 {[%clk 0:03:01]}  e6 {[%clk 0:02:59]} 3. Bf4 {[%clk 0:03:01]}  d5 {[%clk 0:02:57]} 4. e3 {[%clk 0:03:02]}  Bd6 {[%clk 0:02:57]} 5. Nbd2 {[%clk 0:03:00]}  Bxf4 {[%clk 0:02:55]} 6. exf4 {[%clk 0:02:53]}  Qd6 {[%clk 0:02:56]} 7. g3 {[%clk 0:02:53]}  O-O {[%clk 0:02:57]} 8. c3 {[%clk 0:02:52]}  b6 {[%clk 0:02:57]} 9. Bd3 {[%clk 0:02:47]}  Ba6 {[%clk 0:02:57]} 10. Bxa6 {[%clk 0:02:47]}  Nxa6 {[%clk 0:02:58]} 11. O-O {[%clk 0:02:48]}  c5 {[%clk 0:02:58]} 12. Qe2 {[%clk 0:02:48]}  Nb8 {[%clk 0:02:58]} 13. Rad1 {[%clk 0:02:47]}  Nc6 {[%clk 0:02:58]} 14. dxc5 {[%clk 0:02:43]}  Qxc5 {[%clk 0:02:59]} 15. Nb3 {[%clk 0:02:43]}  Qe7 {[%clk 0:02:59]} 16. Rfe1 {[%clk 0:02:42]}  Rfe8 {[%clk 0:02:56]} 17. Kg2 {[%clk 0:02:36]}  Ne4 {[%clk 0:02:54]} 18. Qe3 {[%clk 0:02:34]}  Nd6 {[%clk 0:02:53]} 19. Re2 {[%clk 0:02:27]}  Nc4 {[%clk 0:02:51]} 20. Qc1 {[%clk 0:02:24]}  Rac8 {[%clk 0:02:48]} 21. Rxd5 {[%clk 0:02:08]}  Qb7 {[%clk 0:02:20]} 22. Rd3 {[%clk 0:02:03]}  e5 {[%clk 0:02:19]} 23. Re4 {[%clk 0:01:47]}  Nd4 {[%clk 0:01:51]} 24. Rdxd4 {[%clk 0:01:29]}  exd4 {[%clk 0:01:49]} 25. Rxe8+ {[%clk 0:01:25]}  Rxe8 {[%clk 0:01:48]} 26. Nxd4 {[%clk 0:01:25]}  Qe4 {[%clk 0:01:36]} 27. b3 {[%clk 0:01:25]}  Nd6 {[%clk 0:01:33]} 28. Qd2 {[%clk 0:01:21]}  Nf5 {[%clk 0:01:29]} 29. Nxf5 {[%clk 0:01:19]}  Qxf5 {[%clk 0:01:30]} 30. Ne5 {[%clk 0:01:14]}  Qe4+ {[%clk 0:01:25]} 31. Kg1 {[%clk 0:01:10]}  Qb7 {[%clk 0:01:14]} 32. h4 {[%clk 0:00:49]}  f6 {[%clk 0:01:12]} 33. Ng4 {[%clk 0:00:50]}  Qe7 {[%clk 0:01:06]} 34. Ne3 {[%clk 0:00:49]}  Rd8 {[%clk 0:01:07]} 35. Nd5 {[%clk 0:00:48]}  Qd6 {[%clk 0:01:01]} 36. c4 {[%clk 0:00:47]}  Re8 {[%clk 0:01:01]} 37. Kg2 {[%clk 0:00:42]}  Qc6 {[%clk 0:01:00]} 38. a4 {[%clk 0:00:42]}  h6 {[%clk 0:00:58]} 39. Qd3 {[%clk 0:00:39]}  Qe6 {[%clk 0:00:52]} 40. Kh2 {[%clk 0:00:20]}  Qe2 {[%clk 0:00:48]} 41. Nxf6+ {[%clk 0:00:03]}  Kf7 {[%clk 0:00:33]} 42. Qxe2 {[%clk 0:00:02]}  Rxe2 {[%clk 0:00:34]} 43. Ng4 {[%clk 0:00:03]}  Rb2 {[%clk 0:00:29]} 44. Ne5+ {[%clk 0:00:03]}  Ke6 {[%clk 0:00:29]} 45. Kg2 {[%clk 0:00:03]}  Rxb3 {[%clk 0:00:29]} 46. Nc6 {[%clk 0:00:03]}  Rb4 {[%clk 0:00:25]} 47. Nxb4 {[%clk 0:00:03]} 1-0


[Site "https://www.chess.com"]

[Event "Titled Tuesday Blitz May 31 Early 2022"]
[White "Skliarov, Viktor"]
[Black "Aravindh, Chithambaram VR."]
[WhiteFideId "14106736"]
[BlackFideId "5072786"]
[WhiteElo "2229"]
[BlackElo "2561"]
[Result "0-1"]
[Round "05"]
[TimeControl "180+1"]
[Date "2022.05.31"]
[WhiteClock "0:00:08"]
[BlackClock "0:00:08"]

1. e4 {[%clk 0:03:00]}  g6 {[%clk 0:02:58]} 2. d4 {[%clk 0:03:00]}  Bg7 {[%clk 0:02:59]} 3. Nc3 {[%clk 0:03:00]}  d5 {[%clk 0:02:58]} 4. exd5 {[%clk 0:02:39]}  Nf6 {[%clk 0:02:57]} 5. Bc4 {[%clk 0:02:39]}  Nbd7 {[%clk 0:02:57]} 6. Nf3 {[%clk 0:02:23]}  Nb6 {[%clk 0:02:56]} 7. Bb3 {[%clk 0:02:24]}  a5 {[%clk 0:02:56]} 8. a4 {[%clk 0:02:23]}  O-O {[%clk 0:02:56]} 9. O-O {[%clk 0:02:22]}  Nbxd5 {[%clk 0:02:56]} 10. Nxd5 {[%clk 0:02:14]}  Nxd5 {[%clk 0:02:57]} 11. c3 {[%clk 0:02:11]}  Bg4 {[%clk 0:02:56]} 12. h3 {[%clk 0:02:10]}  Bxf3 {[%clk 0:02:56]} 13. Qxf3 {[%clk 0:02:11]}  e6 {[%clk 0:02:53]} 14. Bd2 {[%clk 0:01:37]}  Qd6 {[%clk 0:02:42]} 15. Rae1 {[%clk 0:01:20]}  Rad8 {[%clk 0:02:20]} 16. Bg5 {[%clk 0:00:58]}  Rd7 {[%clk 0:02:19]} 17. Re4 {[%clk 0:00:44]}  Qb6 {[%clk 0:02:16]} 18. Qd1 {[%clk 0:00:35]}  h6 {[%clk 0:01:43]} 19. Bc1 {[%clk 0:00:35]}  Rfd8 {[%clk 0:01:42]} 20. Qc2 {[%clk 0:00:29]}  c5 {[%clk 0:01:34]} 21. dxc5 {[%clk 0:00:28]}  Qxc5 {[%clk 0:01:35]} 22. Bc4 {[%clk 0:00:20]}  Nf6 {[%clk 0:01:32]} 23. Be3 {[%clk 0:00:20]}  Qf5 {[%clk 0:01:20]} 24. f3 {[%clk 0:00:11]}  Nxe4 {[%clk 0:01:19]} 25. fxe4 {[%clk 0:00:11]}  Qh5 {[%clk 0:01:00]} 26. Be2 {[%clk 0:00:11]}  Qh4 {[%clk 0:01:00]} 27. Bb5 {[%clk 0:00:10]}  Rd6 {[%clk 0:00:16]} 28. Bf2 {[%clk 0:00:10]}  Qg5 {[%clk 0:00:12]} 29. Be1 {[%clk 0:00:09]}  Rd2 {[%clk 0:00:10]} 30. Bxd2 {[%clk 0:00:05]}  Rxd2 {[%clk 0:00:11]} 31. Rf2 {[%clk 0:00:06]}  Rxc2 {[%clk 0:00:09]} 32. Rxc2 {[%clk 0:00:07]}  Qe3+ {[%clk 0:00:09]} 33. Kf1 {[%clk 0:00:07]}  Be5 {[%clk 0:00:10]} 34. Re2 {[%clk 0:00:08]}  Qc1+ {[%clk 0:00:09]} 35. Kf2 {[%clk 0:00:08]}  h5 {[%clk 0:00:09]} 36. g4 {[%clk 0:00:08]}  h4 {[%clk 0:00:08]} 0-1


[Site "https://www.chess.com"]

[Event "Titled Tuesday Blitz May 31 Early 2022"]
[White "Tahbaz, Arash"]
[Black "Harvey, Marcus R"]
[WhiteFideId "12528846"]
[BlackFideId "400092"]
[WhiteElo "2381"]
[BlackElo "2485"]
[Result "0-1"]
[Round "05"]
[TimeControl "180+1"]
[Date "2022.05.31"]
[WhiteClock "0:00:06"]
[BlackClock "0:00:08"]

1. e4 {[%clk 0:03:00]}  e5 {[%clk 0:02:59]} 2. Nf3 {[%clk 0:03:00]}  Nf6 {[%clk 0:03:00]} 3. d3 {[%clk 0:02:53]}  Nc6 {[%clk 0:02:57]} 4. g3 {[%clk 0:02:52]}  Bc5 {[%clk 0:02:55]} 5. Bg2 {[%clk 0:02:51]}  O-O {[%clk 0:02:54]} 6. O-O {[%clk 0:02:52]}  Re8 {[%clk 0:02:53]} 7. h3 {[%clk 0:02:49]}  d5 {[%clk 0:02:50]} 8. Nbd2 {[%clk 0:02:49]}  a5 {[%clk 0:02:49]} 9. a4 {[%clk 0:02:48]}  h6 {[%clk 0:02:46]} 10. c3 {[%clk 0:02:48]}  dxe4 {[%clk 0:02:45]} 11. dxe4 {[%clk 0:02:48]}  b6 {[%clk 0:02:44]} 12. Re1 {[%clk 0:02:45]}  Ba6 {[%clk 0:02:43]} 13. Bf1 {[%clk 0:02:45]}  Bxf1 {[%clk 0:02:43]} 14. Kxf1 {[%clk 0:02:46]}  Qd7 {[%clk 0:02:35]} 15. Kg2 {[%clk 0:02:46]}  Rad8 {[%clk 0:02:36]} 16. Qe2 {[%clk 0:02:43]}  Qe6 {[%clk 0:02:26]} 17. Nc4 {[%clk 0:02:40]}  Rd7 {[%clk 0:02:23]} 18. b3 {[%clk 0:02:18]}  Red8 {[%clk 0:02:23]} 19. Bb2 {[%clk 0:02:18]}  Rd3 {[%clk 0:02:18]} 20. Rac1 {[%clk 0:02:01]}  Nh7 {[%clk 0:02:00]} 21. Red1 {[%clk 0:02:00]}  R3d7 {[%clk 0:01:53]} 22. Rxd7 {[%clk 0:01:59]}  Rxd7 {[%clk 0:01:54]} 23. Rd1 {[%clk 0:01:59]}  Nf6 {[%clk 0:01:54]} 24. Rxd7 {[%clk 0:01:57]}  Qxd7 {[%clk 0:01:48]} 25. Nfxe5 {[%clk 0:01:47]}  Nxe5 {[%clk 0:01:48]} 26. Nxe5 {[%clk 0:01:48]}  Qe6 {[%clk 0:01:48]} 27. c4 {[%clk 0:01:48]}  Ne8 {[%clk 0:01:35]} 28. Nd3 {[%clk 0:01:47]}  Bf8 {[%clk 0:01:30]} 29. e5 {[%clk 0:01:41]}  Nf6 {[%clk 0:01:20]} 30. Nf4 {[%clk 0:01:39]}  Qc6+ {[%clk 0:01:19]} 31. Qf3 {[%clk 0:01:39]}  Ne4 {[%clk 0:01:14]} 32. Nd5 {[%clk 0:01:36]}  Qg6 {[%clk 0:01:13]} 33. Nf4 {[%clk 0:01:27]}  Qc6 {[%clk 0:01:06]} 34. h4 {[%clk 0:01:12]}  Bc5 {[%clk 0:01:02]} 35. Nd5 {[%clk 0:01:11]}  Qg6 {[%clk 0:00:58]} 36. h5 {[%clk 0:01:09]}  Qh7 {[%clk 0:00:58]} 37. Ne3 {[%clk 0:00:56]}  Bxe3 {[%clk 0:00:53]} 38. Qxe3 {[%clk 0:00:56]}  Nc5 {[%clk 0:00:51]} 39. Bd4 {[%clk 0:00:55]}  Ne6 {[%clk 0:00:51]} 40. Bc3 {[%clk 0:00:37]}  Qc2 {[%clk 0:00:50]} 41. Bd2 {[%clk 0:00:37]}  Nc5 {[%clk 0:00:49]} 42. b4 {[%clk 0:00:35]}  Ne4 {[%clk 0:00:27]} 43. Be1 {[%clk 0:00:33]}  axb4 {[%clk 0:00:27]} 44. Bxb4 {[%clk 0:00:31]}  Qxc4 {[%clk 0:00:28]} 45. Be7 {[%clk 0:00:28]}  Qxa4 {[%clk 0:00:25]} 46. f3 {[%clk 0:00:28]}  Qc2+ {[%clk 0:00:24]} 47. Kh3 {[%clk 0:00:27]}  Nf2+ {[%clk 0:00:23]} 48. Kh4 {[%clk 0:00:27]}  Qc4+ {[%clk 0:00:22]} 49. g4 {[%clk 0:00:27]}  Qf1 {[%clk 0:00:22]} 50. Kg3 {[%clk 0:00:12]}  Qg1+ {[%clk 0:00:17]} 51. Kf4 {[%clk 0:00:11]}  Qh2+ {[%clk 0:00:16]} 52. Kf5 {[%clk 0:00:12]}  Nh1 {[%clk 0:00:14]} 53. Ke4 {[%clk 0:00:10]}  Qc2+ {[%clk 0:00:12]} 54. Kd5 {[%clk 0:00:10]}  Nf2 {[%clk 0:00:10]} 55. e6 {[%clk 0:00:09]}  Qa2+ {[%clk 0:00:06]} 56. Kc6 {[%clk 0:00:09]}  Qxe6+ {[%clk 0:00:06]} 57. Qxe6 {[%clk 0:00:10]}  fxe6 {[%clk 0:00:06]} 58. Kxc7 {[%clk 0:00:11]}  b5 {[%clk 0:00:06]} 59. Kc6 {[%clk 0:00:11]}  Kf7 {[%clk 0:00:07]} 60. Bc5 {[%clk 0:00:12]}  Nd3 {[%clk 0:00:07]} 61. Kxb5 {[%clk 0:00:10]}  Ne5 {[%clk 0:00:05]} 62. Be3 {[%clk 0:00:08]}  Nxf3 {[%clk 0:00:05]} 63. Kc5 {[%clk 0:00:07]}  Kf6 {[%clk 0:00:05]} 64. Kd6 {[%clk 0:00:07]}  e5 {[%clk 0:00:05]} 65. Kd5 {[%clk 0:00:07]}  Nh2 {[%clk 0:00:05]} 66. g5+ {[%clk 0:00:03]}  hxg5 {[%clk 0:00:06]} 67. Ke4 {[%clk 0:00:03]}  Ng4 {[%clk 0:00:06]} 68. Bd2 {[%clk 0:00:03]}  Nh6 {[%clk 0:00:06]} 69. Bc3 {[%clk 0:00:03]}  Nf7 {[%clk 0:00:06]} 70. Bb2 {[%clk 0:00:04]}  Ke6 {[%clk 0:00:06]} 71. Bc3 {[%clk 0:00:04]}  Nd6+ {[%clk 0:00:07]} 72. Kf3 {[%clk 0:00:05]}  Kf5 {[%clk 0:00:07]} 73. Kg3 {[%clk 0:00:06]}  Ne4+ {[%clk 0:00:08]} 0-1


[Site "https://www.chess.com"]